[Event "15th Chennai GM Open 2025"]
[Site "Chennai"]
[Date "2025.01.04"]
[Round "4.14"]
[White "Sarveshwaran V"]
[Black "Mrithyunjay Mahadevan"]
[Result "1-0"]
[ECO "C65"]
[WhiteElo "2150"]
[BlackElo "2345"]
[Annotator "TA"]
[PlyCount "71"]
[EventDate "2025.01.02"]
[EventType "swiss"]
[EventCountry "IND"]
[SourceTitle "playchess.com"]
[Source "ChessBase"]
[SourceQuality "1"]
[TimeControl "5400+30"]

{[%evp 14,71,33,36,170,123,170,156,222,205,203,169,202,192,268,270,322,238,455,439,414,237,455,450,459,478,466,454,460,354,508,168,177,163,1076,1080,935,880,1922,1912,1777,1658,29985,29983,29986,29984,29990,29991,29991,29992,29992,29991,29992,29993,29996,29997,29997,29998,29998,29999]} 1. e4 {[%emt 0:00:05]} e5 {[%emt 0:00:08]} 2. Nf3 {[%emt 0:00:11]} Nc6 {[%emt 0:00:04]} 3. Bb5 {[%emt 0:00:04]} Bc5 {[%emt 0:00:05]} 4. c3 {[%emt 0:01:08]} Nf6 {[%emt 0:00:21]} 5. O-O {[%emt 0:11:12]} O-O {[%emt 0:00:10]} 6. d4 {[%emt 0:01:02]} Bb6 {[%emt 0:00:36]} 7. Bg5 {[%emt 0:07:02]} h6 {[%emt 0:06:22]} 8. Bh4 {[%emt 0:07:13]} Re8 {[%emt 0:27:52]} ({Black should play} 8... d6 $14) 9. Re1 {[%emt 0:20:27]} (9. Qc1 $18) 9... exd4 {[%emt 0:47:59]} (9... g5 $16) 10. e5 $18 {[%emt 0:04:13]} ({Not} 10. cxd4 g5 11. Bg3 Rxe4 (11... Nxe4 12. Nc3 $15) 12. Rxe4 Nxe4 $15) (10. Nxd4 Nxd4 11. cxd4 g5 $17 (11... Rxe4 $2 12. Rxe4 g5 13. Bxg5 $18)) 10... Nxe5 {[%emt 0:02:24]} (10... g5 $16) 11. Nxe5 {[%emt 0:01:07]} c6 {[%emt 0:00:14]} 12. Ba4 {[%emt 0:11:46]} g5 {[%emt 0:00:29] [#]} 13. Bg3 $1 {[%emt 0:00:43]} dxc3 {[%emt 0:02:28]} (13... d6 $142) 14. Nxc3 {[%emt 0:00:59]} d5 {[%emt 0:00:20] Against Ne4} 15. h4 {[%emt 0:03:44]} d4 $2 {[%emt 0:01:01] [#]} (15... Bf5 16. Qf3 Be6) 16. Bb3 $1 {[%emt 0:03:40]} Be6 {[%emt 0:01:58]} 17. Na4 {[%emt 0:03:42]} (17. Ne4 $142) 17... Ba5 $2 {[%emt 0:01:09]} (17... Bxb3 {keeps fighting.} 18. Qxb3 Qd5) 18. hxg5 {[%emt 0:01:07]} hxg5 {[%emt 0:00:16] [#]} 19. Bxe6 $1 {[%emt 0:00:32]} Rxe6 {[%emt 0:00:18] [#]} 20. Nc5 $1 {[%emt 0:00:13][%csl LRb7,LRe6][%cal Ba4c5,Bc5e4,Be4f6][%mdl 32]} Re7 {[%emt 0:00:23]} (20... Bxe1 21. Nxe6) 21. Re2 {[%emt 0:04:11]} Qd5 {[%emt 0:00:52]} (21... Bb6 $142 22. b4 d3) 22. Qc1 $2 {[%emt 0:01:13]} (22. Ned7 Rxd7 23. Re5 (23. Nxd7 Nxd7 24. Qd3 Rf8 $11)) 22... Nh7 {[%emt 0:00:38]} 23. Ne4 {[%emt 0:05:57][%cal Oe4f6] Strongly threatening Nf6+!.} Qb5 $2 {[%emt 0:04:59] [#]} (23... Re6) 24. Nf6+ $1 {[%emt 0:02:26][%mdl 512]} Kh8 {[%emt 0:00:02] [#]} (24... Nxf6 25. Qxg5+) 25. Ng6+ $1 {[%emt 0:00:31][%mdl 512]} fxg6 {[%emt 0:00:39]} (25... Kg7 26. Rxe7) 26. Rxe7 {[%emt 0:00:09]} Nxf6 {[%emt 0:00:03]} 27. Be5 {[%emt 0:00:08][%cal Bg3e5,Be5f6,Bf6e7,Be7d6][%mdl 32]} Bb4 {[%emt 0:00:33]} 28. Bxf6+ {[%emt 0:00:11]} Kg8 {[%emt 0:00:04][%cal Bh8g8,Bg8f7,Bf7e8,Be8d7][%mdl 32]} 29. Re5 {[%emt 0:00:23]} Qd3 {[%emt 0:00:06]} 30. Qxg5 {[%emt 0:00:08]} Rf8 {[%emt 0:00:04]} 31. Qh4 {[%emt 0:00:25]} Kf7 {[%emt 0:00:09]} 32. Be7 {[%emt 0:00:11]} g5 {[%emt 0:00:14]} 33. Qxg5 {[%emt 0:00:22]} Rg8 {[%emt 0:00:08]} 34. Qf6+ {[%emt 0:00:05]} Ke8 {[%emt 0:00:06]} 35. Bd6+ {[%emt 0:00:14]} Kd7 {[%emt 0:00:07]} 36. Qe7+ {[%emt 0:00:03]} 1-0

[Event "15th Chennai GM Open 2025"]
[Site "Chennai"]
[Date "2025.01.04"]
[Round "4.15"]
[White "Anadkat Kartavya"]
[Black "Slizhevsky, Alexander"]
[Result "1/2-1/2"]
[ECO "B28"]
[WhiteElo "2139"]
[BlackElo "2340"]
[Annotator "TA"]
[PlyCount "60"]
[EventDate "2025.01.02"]
[EventType "swiss"]
[EventCountry "IND"]
[SourceTitle "playchess.com"]
[Source "ChessBase"]
[SourceQuality "1"]
[TimeControl "5400+30"]

{[%evp 9,60,32,27,25,33,27,33,-10,-1,-14,-8,-12,8,-8,26,-8,0,0,0,0,0,0,0,0,0,0,0,-16,0,-4,-2,-7,-1,-1,0,-13,-16,-15,0,0,0,0,0,0,0,0,0,0,0,-1,0,-4,-4]} 1. e4 {[%emt 0:00:39]} c5 {[%emt 0:00:14]} 2. Nf3 {[%emt 0:00:05]} a6 {[%emt 0:00:07]} 3. g3 {[%emt 0:01:51]} b5 {[%emt 0:00:50]} 4. Bg2 {[%emt 0:00:20]} Bb7 {[%emt 0:00:12]} 5. d3 {[%emt 0:01:07]} e6 {[%emt 0:01:20]} 6. O-O {[%emt 0:00:05]} Be7 {[%emt 0:01:19]} 7. Re1 {[%emt 0:03:04]} d6 {[%emt 0:01:20]} 8. c3 {[%emt 0:11:38] White is slightly better.} Nf6 {[%emt 0:02:01]} 9. Nbd2 {[%emt 0:00:02]} O-O {[%emt 0:10:35]} 10. d4 {[%emt 0:05:07]} cxd4 {[%emt 0:03:13]} 11. cxd4 {[%emt 0:02:39]} Qc7 {[%emt 0:16:59]} 12. b3 {[%emt 0:03:26]} Rc8 {[%emt 0:04:16] The position is equal.} 13. Bb2 {[%emt 0:10:36]} Qc2 {[%emt 0:01:54]} 14. Qxc2 {[%emt 0:00:38]} Rxc2 {[%emt 0:00:07]} 15. Rab1 {[%emt 0:00:11]} Nbd7 {[%emt 0:02:55]} 16. Bf1 {[%emt 0:00:17]} Rac8 {[%emt 0:00:49]} 17. Bd3 {[%emt 0:00:23]} R2c7 {[%emt 0:00:49]} 18. Kf1 {[%emt 0:10:03]} Kf8 {[%emt 0:05:11]} 19. Rbc1 {[%emt 0:01:16]} Rxc1 {[%emt 0:05:04]} 20. Rxc1 {[%emt 0:00:03]} Rxc1+ {[%emt 0:01:43]} 21. Bxc1 {[%emt 0:00:02]} e5 {[%emt 0:00:58]} 22. d5 {[%emt 0:09:38]} Nc5 {[%emt 0:02:07]} 23. Ne1 {[%emt 0:00:41]} Bd8 {[%emt 0:02:46]} 24. f3 {[%emt 0:01:25]} Nfd7 {[%emt 0:07:36]} 25. Ke2 {[%emt 0:02:32]} f5 {[%emt 0:03:28]} 26. Bc2 {[%emt 0:01:22]} Nf6 {[%emt 0:07:35]} 27. b4 {[%emt 0:03:22]} Na4 {[%emt 0:03:24]} 28. Nb1 {[%emt 0:03:48] Against Nc3+} Nb6 {[%emt 0:03:28]} 29. Nc3 {[%emt 0:00:54]} Bc8 {[%emt 0:00:22]} 30. Bd3 {[%emt 0:04:22]} Kf7 {[%emt 0:03:07] Weighted Error Value: White=0.06 (flawless) /Black=0.04 (flawless) .  Inaccurate:     	White=2     	Black=1      OK:         	White=11    	Black=12} 1/2-1/2

[Event "15th Chennai GM Open 2025"]
[Site "Chennai"]
[Date "2025.01.05"]
[Round "5.1"]
[White "Siddharth, Jagadeesh"]
[Black "Iniyan, Pa"]
[Result "1/2-1/2"]
[ECO "B47"]
[WhiteElo "2515"]
[BlackElo "2508"]
[Annotator "TA"]
[PlyCount "60"]
[EventDate "2025.01.02"]
[EventType "swiss"]
[EventCountry "IND"]
[SourceTitle "playchess.com"]
[Source "ChessBase"]
[SourceQuality "1"]
[TimeControl "5400+30"]

{[%evp 11,60,14,24,10,65,44,60,34,62,37,45,38,70,55,71,20,18,16,38,10,3,0,11,6,7,0,0,3,0,7,11,0,0,0,0,-5,-4,-6,-6,-10,0,0,0,0,0,0,0,0,0,0,0]} 1. e4 {[%emt 0:00:02]} c5 {[%emt 0:08:07]} 2. Nf3 {[%emt 0:00:07]} e6 {[%emt 0:00:05]} 3. d4 {[%emt 0:00:09]} cxd4 {[%emt 0:00:07]} 4. Nxd4 {[%emt 0:00:04]} Nc6 {[%emt 0:00:07]} 5. Nc3 {[%emt 0:00:06]} Qc7 {[%emt 0:00:05]} 6. Be2 {[%emt 0:01:01]} a6 {[%emt 0:02:22]} 7. Nxc6 {[%emt 0:00:07]} Qxc6 {[%emt 0:03:06]} ({Black should try} 7... bxc6 $11 8. Qd3 d5) 8. O-O $14 {[%emt 0:00:27]} Qc7 {[%emt 0:01:18]} 9. f4 {[%emt 0:15:12]} d6 {[%emt 0:04:39]} 10. a4 {[%emt 0:00:23]} Nf6 {[%emt 0:01:11]} 11. Be3 {[%emt 0:01:12]} Be7 {[%emt 0:01:18]} 12. a5 {[%emt 0:02:18] White is more active.} Bd7 {[%emt 0:01:56]} 13. Kh1 {[%emt 0:04:15]} (13. Bb6 $16 Qb8 14. h3) 13... Bc6 $11 {[%emt 0:02:18]} 14. Bf3 {[%emt 0:00:08]} O-O {[%emt 0:01:35][%cal Od6d5]} 15. Qd2 {[%emt 0:03:53]} Rac8 {[%emt 0:12:13]} 16. Rfe1 {[%emt 0:19:15]} Rfe8 {[%emt 0:06:39]} 17. Bb6 {[%emt 0:05:08]} Qb8 {[%emt 0:00:07]} 18. Na4 {[%emt 0:00:04]} d5 {[%emt 0:25:22]} 19. e5 {[%emt 0:00:22]} Nd7 {[%emt 0:00:04]} 20. Bf2 {[%emt 0:06:11][%cal Oc2c4]} Bxa4 {[%emt 0:00:40]} 21. Rxa4 {[%emt 0:00:02][%cal Oc2c4]} b6 {[%emt 0:06:36]} 22. axb6 {[%emt 0:10:16]} Nxb6 {[%emt 0:00:05]} 23. Bxb6 {[%emt 0:00:07]} Qxb6 {[%emt 0:00:06]} 24. c3 {[%emt 0:00:07]} Rb8 {[%emt 0:01:14][%cal Bc8b8,Bb8b4,Bb4d4,Bd4e4][%mdl 32]} 25. b4 {[%emt 0:00:06] [#]} d4 $1 {[%emt 0:00:08]} 26. Qxd4 {[%emt 0:00:09]} Qxd4 {[%emt 0:00:06]} 27. cxd4 {[%emt 0:00:03]} Rxb4 {[%emt 0:00:08]} 28. Rxa6 {[%emt 0:00:07]} Rxd4 {[%emt 0:00:06]} 29. g3 {[%emt 0:00:03]} g5 {[%emt 0:00:14]} 30. Re4 {[%emt 0:00:07]} Rxe4 {[%emt 0:00:05]} 1/2-1/2

[Event "15th Chennai GM Open 2025"]
[Site "Chennai"]
[Date "2025.01.05"]
[Round "5.2"]
[White "Vaz, Ethan"]
[Black "Aronyak Ghosh"]
[Result "1/2-1/2"]
[ECO "C01"]
[WhiteElo "2412"]
[BlackElo "2544"]
[Annotator "TA"]
[PlyCount "79"]
[EventDate "2025.01.02"]
[EventType "swiss"]
[EventCountry "IND"]
[SourceTitle "playchess.com"]
[Source "ChessBase"]
[SourceQuality "1"]
[TimeControl "5400+30"]

{[%evp 11,79,8,10,0,-6,-8,-4,-13,-8,-16,-4,-39,-41,-45,-42,-74,-70,-77,-70,-79,-69,-81,-69,-58,-43,-58,-47,-68,-15,-21,-9,-30,-35,-32,0,0,0,0,0,0,0,0,0,-1,-1,-1,-1,-1,-1,-1,-1,-1,-1,-1,0,-7,0,-19,-13,-19,-22,-65,-64,-68,-68,-70,-64,-68,-45,-44]} 1. e4 {[%emt 0:00:26]} e6 {[%emt 0:03:11]} 2. d4 {[%emt 0:00:20]} d5 {[%emt 0:00:04]} 3. exd5 {[%emt 0:05:11]} exd5 {[%emt 0:00:16]} 4. Nf3 {[%emt 0:00:14]} Nc6 {[%emt 0:01:11]} 5. c3 {[%emt 0:04:03]} Bd6 {[%emt 0:00:57]} 6. Bd3 {[%emt 0:03:00]} Qe7+ {[%emt 0:07:23]} 7. Qe2 {[%emt 0:16:05]} Qxe2+ {[%emt 0:01:03]} 8. Kxe2 {[%emt 0:00:10]} Nge7 {[%emt 0:00:28]} 9. Re1 {[%emt 0:11:19]} f6 {[%emt 0:01:58]} 10. a4 {[%emt 0:08:08]} Kf7 {[%emt 0:02:07]} 11. Nbd2 {[%emt 0:08:37]} g5 {[%emt 0:03:20]} 12. Nf1 {[%emt 0:05:50]} Ng6 {[%emt 0:06:40]} 13. h3 {[%emt 0:03:47]} Nce7 {[%emt 0:02:18]} 14. Kd1 {[%emt 0:01:29]} h5 {[%emt 0:08:34]} 15. Ng1 {[%emt 0:08:17]} c6 {[%emt 0:09:12]} 16. b3 {[%emt 0:01:31]} Nf4 {[%emt 0:05:28]} 17. Bxf4 {[%emt 0:00:07]} Bxf4 {[%emt 0:01:06]} 18. Ra2 {[%emt 0:01:19]} Bd6 {[%emt 0:02:29]} (18... Bc7 {looks sharper.} 19. Nf3 Ng6 20. Rae2 Bd6) 19. Ne3 {[%emt 0:05:32]} g4 {[%emt 0:03:15]} (19... a5 $15) 20. hxg4 $11 {[%emt 0:03:45]} hxg4 {[%emt 0:01:34]} 21. Ne2 {[%emt 0:01:08]} f5 {[%emt 0:04:31]} 22. g3 {[%emt 0:00:15]} Kf6 {[%emt 0:00:35]} 23. Rf1 {[%emt 0:01:24]} Bd7 {[%emt 0:02:42]} 24. f3 {[%emt 0:01:51]} gxf3 {[%emt 0:01:03]} 25. Rxf3 {[%emt 0:00:04]} Rh1+ {[%emt 0:00:05]} 26. Kd2 {[%emt 0:01:00]} Kg5 {[%emt 0:01:41]} 27. Rc2 {[%emt 0:02:35]} Rah8 {[%emt 0:00:36]} 28. Rc1 {[%emt 0:00:38]} Rxc1 {[%emt 0:01:33]} 29. Kxc1 {[%emt 0:00:36]} Rh1+ {[%emt 0:00:49]} 30. Kd2 {[%emt 0:02:04]} a5 {[%emt 0:00:30]} 31. Rf2 {[%emt 0:03:28]} Rh3 {[%emt 0:01:41]} 32. Nf1 {[%emt 0:00:50]} Rh1 {[%emt 0:05:51]} 33. Ne3 {[%emt 0:00:35]} b5 {[%emt 0:02:42]} 34. Bc2 {[%emt 0:00:25]} Rh3 {[%emt 0:01:08]} 35. Nf1 {[%emt 0:00:52]} b4 {[%emt 0:00:26]} 36. Ng1 {[%emt 0:00:44]} Rh1 {[%emt 0:02:02]} 37. Nf3+ {[%emt 0:00:14]} Kf6 {[%emt 0:00:13]} 38. Bd3 {[%emt 0:00:48][%cal Og3g4]} bxc3+ {[%emt 0:00:39]} 39. Kxc3 {[%emt 0:00:01]} Rh8 {[%emt 0:00:51]} 40. g4 {[%emt 0:00:44]} 1/2-1/2

[Event "15th Chennai GM Open 2025"]
[Site "Chennai"]
[Date "2025.01.05"]
[Round "5.3"]
[White "Das, Sayantan"]
[Black "Podolchenko, Evgeniy"]
[Result "1-0"]
[ECO "C02"]
[WhiteElo "2434"]
[BlackElo "2346"]
[Annotator "TA"]
[PlyCount "63"]
[EventDate "2025.01.02"]
[EventType "swiss"]
[EventCountry "IND"]
[SourceTitle "playchess.com"]
[Source "ChessBase"]
[SourceQuality "1"]
[TimeControl "5400+30"]

{[%evp 14,63,0,0,0,-29,20,32,63,61,49,69,53,62,61,72,70,101,73,44,88,101,132,107,171,181,180,170,168,164,239,257,851,829,1327,1327,1309,1238,1270,1291,1284,1282,1270,1262,1156,1135,29970,29971,6764,5714,2130,1555]} 1. e4 {[%emt 0:01:29]} e6 {[%emt 0:02:02]} 2. d4 {[%emt 0:00:48]} d5 {[%emt 0:00:07]} 3. e5 {[%emt 0:00:37]} c5 {[%emt 0:00:07]} 4. c3 {[%emt 0:00:04]} Qb6 {[%emt 0:00:30]} 5. Nf3 {[%emt 0:00:58]} Nc6 {[%emt 0:00:06]} 6. Be2 {[%emt 0:00:21]} cxd4 {[%emt 0:00:25]} 7. cxd4 {[%emt 0:00:06]} Nh6 {[%emt 0:00:18]} 8. Bxh6 {[%emt 0:00:31]} Qxb2 {[%emt 0:01:51]} 9. Nc3 {[%emt 0:00:43]} (9. Nbd2 $5 gxh6 10. O-O $11) 9... gxh6 {[%emt 0:13:50]} (9... Qxc3+ {is superior.} 10. Bd2 Qa3) 10. Nb5 $1 $11 {[%emt 0:02:03]} Qb4+ {[%emt 0:01:22]} 11. Kf1 {[%emt 0:00:00]} Qa5 {[%emt 0:00:22] Repels Nc7+} 12. Qc1 $1 {[%emt 0:00:27]} a6 {[%emt 0:27:20]} 13. Nd6+ {[%emt 0:00:56]} Bxd6 {[%emt 0:00:04]} 14. exd6 {[%emt 0:00:06]} Qd8 {[%emt 0:01:34]} 15. Qf4 {[%emt 0:00:21][%cal Oh2h4][%mdl 1024] White has compensation.} O-O {[%emt 0:01:31]} 16. h4 {[%emt 0:16:05][%cal Oh1h3,Bh2h4,Bh4h5][%mdl 32]} f6 {[%emt 0:01:56][%cal Oe6e5] [#]} 17. Rh3 $1 {[%emt 0:04:32] White is more active.} (17. Qxh6 Qxd6 18. Rh3 Kh8 $16) 17... Kh8 {[%emt 0:06:06][%cal Oe6e5] ...e5! would now be deadly.} 18. Rg3 $1 {[%emt 0:05:47]} Bd7 {[%emt 0:07:15]} (18... Qe8 $16) 19. Rb1 $18 {[%emt 0:05:18]} (19. Qxh6 $6 Rf7 $14) 19... b5 {[%emt 0:03:44]} 20. Rc1 {[%emt 0:05:37][%cal Oe2d3]} (20. Qxh6 $6 Rf7 $14) 20... Rc8 {[%emt 0:01:26]} 21. h5 {[%emt 0:10:38]} Rf7 {[%emt 0:04:03]} (21... Rg8 {was called for.}) 22. Nh4 $40 {[%emt 0:08:13][%mdl 128] White attacks with force.} (22. Qxh6 Qf8 23. Qd2 Qxd6 $11) 22... Rg7 $2 {[%emt 0:06:49]} (22... Nxd4 23. Rxc8 Qxc8) 23. Qxh6 {[%emt 0:09:29]} Rxg3 {[%emt 0:00:24]} 24. fxg3 {[%emt 0:00:05]} e5 {[%emt 0:08:55] [#]} 25. Rxc6 $1 {[%emt 0:04:48]} Rxc6 {[%emt 0:00:32]} (25... Kg8 26. Rxa6) 26. Ng6+ {[%emt 0:00:06]} Kg8 {[%emt 0:00:03]} 27. Ne7+ {[%emt 0:00:09]} Kf7 {[%emt 0:00:08]} 28. dxe5 {[%emt 0:01:52][%cal Bd4e5,Be5e6][%mdl 32]} Qh8 {[%emt 0:01:55]} 29. Nxc6 {[%emt 0:01:54][%cal Oh6f4] and Qf4! should not be overlooked} ({Inferior is} 29. Nxd5 fxe5 30. Qg5 Ke6 $11) 29... Bxc6 {[%emt 0:00:02]} 30. Bg4 {[%emt 0:00:29]} f5 {[%emt 0:03:17]} 31. e6+ {[%emt 0:02:46]} Ke8 {[%emt 0:00:08]} 32. d7+ {[%emt 0:00:41]} 1-0

[Event "15th Chennai GM Open 2025"]
[Site "Chennai"]
[Date "2025.01.05"]
[Round "5.4"]
[White "Kaustuv, Kundu"]
[Black "Varun, V."]
[Result "1-0"]
[ECO "D32"]
[WhiteElo "2409"]
[BlackElo "2173"]
[Annotator "TA"]
[PlyCount "71"]
[EventDate "2025.01.02"]
[EventType "swiss"]
[EventCountry "IND"]
[SourceTitle "playchess.com"]
[Source "ChessBase"]
[SourceQuality "1"]
[TimeControl "5400+30"]

{[%evp 16,71,18,12,13,19,16,9,0,7,0,0,10,12,8,-4,-7,-71,-85,-85,-85,-85,-74,-80,-22,-46,-45,-92,-86,-63,-94,-103,96,97,85,91,98,87,254,251,375,383,608,604,583,608,536,350,351,352,539,539,703,706,696,694,5002,2209]} 1. Nf3 {[%emt 0:06:28]} c5 {[%emt 0:00:14]} 2. c4 {[%emt 0:00:14]} Nc6 {[%emt 0:00:29]} 3. e3 {[%emt 0:00:41]} Nf6 {[%emt 0:01:40]} 4. Nc3 {[%emt 0:00:06]} e6 {[%emt 0:00:58]} 5. d4 {[%emt 0:00:28]} d5 {[%emt 0:00:05]} 6. cxd5 {[%emt 0:00:06]} exd5 {[%emt 0:00:59]} 7. Bb5 {[%emt 0:00:35]} cxd4 {[%emt 0:11:52]} 8. Nxd4 {[%emt 0:01:29]} Bd7 {[%emt 0:00:06]} 9. O-O {[%emt 0:00:27]} Bd6 {[%emt 0:00:57]} 10. Nf3 {[%emt 0:01:43][%cal Oe3e4]} a6 {[%emt 0:08:21]} 11. Be2 {[%emt 0:00:33][%cal Oe3e4]} Be6 {[%emt 0:00:18]} 12. b3 {[%emt 0:01:16]} O-O {[%emt 0:00:32]} 13. Bb2 {[%emt 0:00:07]} Rc8 {[%emt 0:01:30]} 14. Rc1 {[%emt 0:00:36]} Qe7 {[%emt 0:04:52]} (14... Re8 {with more complications.} 15. Na4 Ne4 16. Nd4 Bd7) 15. Rc2 {[%emt 0:10:13]} Rfd8 {[%emt 0:09:18]} 16. Qa1 {[%emt 0:03:21] [#]} (16. Rd2 $11 {keeps the balance.}) 16... d4 $1 $17 {[%emt 0:07:03]} 17. exd4 {[%emt 0:09:49]} Nb4 {[%emt 0:03:04]} 18. Rd2 {[%emt 0:03:39][%cal Od4d5]} Bf4 {[%emt 0:08:14][%mdl 1024] Black has strong compensation.} 19. Rdd1 {[%emt 0:01:26]} Bf5 {[%emt 0:00:05]} (19... Nfd5 $17 20. Bc4 Nxc3 21. Bxc3 Bxc4 22. bxc4 Rxc4) 20. Ba3 $11 {[%emt 0:19:17]} Bd6 $1 {[%emt 0:06:44]} 21. d5 {[%emt 0:03:37]} (21. Rc1 $15 {feels stronger.}) 21... Nc2 $17 {[%emt 0:02:23]} 22. Bxd6 {[%emt 0:00:09]} Rxd6 {[%emt 0:02:27]} 23. Qb2 {[%emt 0:07:31] [#]} Rxc3 $2 {[%emt 0:07:20]} 24. Qxc3 $16 {[%emt 0:00:00]} Qxe2 {[%emt 0:00:06] [#]} 25. Nh4 $1 $36 {[%emt 0:06:12][%mdl 2048] Keeping Black busy.} Bd7 {[%emt 0:01:21]} (25... Rxd5 $2 26. Rxd5 Nxd5 27. Qa5 $18) (25... Nxd5 $2 26. Qc5 (26. Nxf5 $2 Nxc3 27. Rxd6 h5 $19) (26. Qg3 Re6 $18) 26... Bd7 27. Qxd6 $18) 26. Rd2 {[%emt 0:06:19]} Qg4 $2 {[%emt 0:02:46] [#]} (26... Qe4 $16) 27. Qe5 $1 $18 {[%emt 0:02:09]} Qxh4 {[%emt 0:11:40]} (27... Ne8 {was worth a try.}) 28. Qxd6 {[%emt 0:00:37]} Nd4 {[%emt 0:00:07]} (28... Qe4 $142 29. Qc5 Ne1) 29. Qb8+ {[%emt 0:00:51]} Ne8 {[%emt 0:00:07][%cal Od4f3] Strongly threatening ...Nf3+!.} 30. Re1 {[%emt 0:01:24]} Kf8 {[%emt 0:00:01][%cal Od4f3]} 31. Rxe8+ {[%emt 0:00:49]} Bxe8 {[%emt 0:00:07]} 32. Qd6+ {[%emt 0:00:03]} (32. Qxb7 $2 {loses.} Nf3+ 33. gxf3 Qg5+ 34. Kf1 Qxd2 $19) 32... Kg8 {[%emt 0:02:48]} (32... Qe7 $142 33. Qxe7+ Kxe7 34. Rxd4 Kd6) 33. Qe5 $1 {[%emt 0:00:09][%csl LRd4,LRe8][%cal Re5e8]} Nf3+ {[%emt 0:00:16]} 34. gxf3 {[%emt 0:00:06][%cal Re5e8]} Qd8 {[%emt 0:00:07]} 35. d6 {[%emt 0:01:30][%cal Od6d7] and d7! should not be overlooked} Bd7 {[%emt 0:00:02]} 36. Qe7 {[%emt 0:00:31]} 1-0

[Event "15th Chennai GM Open 2025"]
[Site "Chennai"]
[Date "2025.01.05"]
[Round "5.5"]
[White "Kolla Bhaavan"]
[Black "Sammed Jaykumar, Shete"]
[Result "0-1"]
[ECO "B22"]
[WhiteElo "1946"]
[BlackElo "2379"]
[Annotator "TA"]
[PlyCount "54"]
[EventDate "2025.01.02"]
[EventType "swiss"]
[EventCountry "IND"]
[SourceTitle "playchess.com"]
[Source "ChessBase"]
[SourceQuality "1"]
[TimeControl "5400+30"]

{[%evp 25,54,44,45,44,45,10,72,50,41,-12,-22,-25,-13,-34,-27,-144,-126,-111,-116,-125,0,0,0,-520,-503,-939,-897,-881,-912,-1479,-1043]} 1. e4 {[%emt 0:00:02]} c5 {[%emt 0:00:13]} 2. Nf3 {[%emt 0:00:05]} a6 {[%emt 0:00:35]} 3. c3 {[%emt 0:05:11]} d5 {[%emt 0:01:17]} 4. exd5 {[%emt 0:01:49]} Qxd5 {[%emt 0:00:07]} 5. d4 {[%emt 0:00:03]} Nf6 {[%emt 0:01:02]} 6. Be3 {[%emt 0:04:31]} cxd4 {[%emt 0:02:58]} 7. cxd4 {[%emt 0:03:48]} e6 {[%emt 0:00:19]} 8. Nc3 {[%emt 0:09:02]} Qd6 {[%emt 0:00:38]} 9. Bd3 {[%emt 0:03:04]} Nc6 {[%emt 0:04:41]} 10. a3 {[%emt 0:03:57]} Be7 {[%emt 0:01:31]} 11. O-O {[%emt 0:00:23]} O-O {[%emt 0:00:36]} 12. Qc2 {[%emt 0:08:30]} Bd7 {[%emt 0:06:59]} 13. Rad1 {[%emt 0:15:24]} Rac8 {[%emt 0:04:50]} 14. Rfe1 {[%emt 0:23:41]} Rfd8 {[%emt 0:11:18]} 15. h3 {[%emt 0:14:16]} (15. Ng5 {is interesting.} g6 16. Qe2 Nd5 17. Qf3) 15... Na5 {[%emt 0:06:55]} (15... b5 $11) 16. Bg5 {[%emt 0:01:50][%cal Od4d5] And now d5! would win.} h6 {[%emt 0:01:12]} 17. Bxf6 {[%emt 0:00:52]} ({White should play} 17. Bh4 $14) 17... Bxf6 $11 {[%emt 0:00:23]} 18. Qe2 {[%emt 0:00:28]} Bc6 {[%emt 0:05:50][%cal Oc6f3]} (18... Bxd4 $2 19. Nxd4 Be8 (19... Qxd4 $2 20. Bh7+ Kxh7 21. Rxd4 $18) 20. Nb3 $18) 19. Ne5 {[%emt 0:01:06]} Nb3 {[%emt 0:02:49]} (19... Qxd4 $2 {too greedy.} 20. Bh7+ Kxh7 21. Rxd4 Rxd4 22. Nxf7 $18) 20. Bc4 {[%emt 0:01:40]} (20. Nxc6 $11 {keeps the balance.} Qxc6 (20... Rxc6 21. d5 $16) 21. Be4) 20... Nxd4 $17 {[%emt 0:01:47]} 21. Rxd4 {[%emt 0:00:40]} Qxd4 {[%emt 0:00:30]} 22. Nxf7 {[%emt 0:00:30] [#]} Kxf7 {[%emt 0:01:29]} (22... Re8 $1 $17 23. Rd1 Qf4) 23. Qxe6+ $11 {[%emt 0:00:19]} Kg6 {[%emt 0:00:07]} 24. Re3 $2 {[%emt 0:00:26][%mdl 8192]} (24. Ba2 $11 Kh7 25. Bb1+ g6 (25... Kh8 $2 26. Qf5 $18) 26. Qf7+ Bg7 (26... Kh8 $2 27. Qxg6 Rc7 28. Qxh6+ Kg8 29. Ba2+ Rf7 30. Qg6+ Kh8 31. Qxf7 $18) 27. Qxg6+ Kg8 28. Qe6+ Kh8 29. Qf5) 24... Qf4 $19 {[%emt 0:03:15]} (24... Kh7 25. Bd3+ Kh8 26. Qf5 $11) 25. Bd3+ {[%emt 0:00:51] [#]} (25. g3 $142 Qf5 26. Qxf5+ Kxf5 27. Be6+ Kg6 28. Bxc8 Rxc8 29. Re1) 25... Rxd3 $1 {[%emt 0:00:15]} 26. Rxd3 {[%emt 0:00:06]} Re8 {[%emt 0:00:20]} 27. Rg3+ {[%emt 0:00:23] [#]} Qxg3 $3 {[%emt 0:00:13][%mdl 512]} 0-1